Department Family,Entity,Date,Expense Type,Expense Area,Supplier,Amount in sterling
Companies House,CH,06/03/2023,Adjudicator General,Scotland,WALKER LOVE,"11,092.50 "
Companies House,CH,08/03/2023,Building Refurbishment,Estates Projects,ROLFE CONTRACTING LTD,"50,474.08 "
Companies House,CH,15/03/2023,Campaigns,"Strategy, Policy & Communications",Bloom Procurement Services Ltd,"3,460.24 "
Companies House,CH,22/03/2023,Campaigns,"Strategy, Policy & Communications",Bloom Procurement Services Ltd,"7,225 "
Companies House,CH,31/03/2023,CE Misc Additions TY,Infrastructure,PURE DATA SOLUTIONS LIMITED,"2,385.72 "
Companies House,CH,27/03/2023,CE Misc Additions TY,Infrastructure,Kodak Alaris Ltd,"3,886.80 "
Companies House,CH,31/03/2023,CE Misc Additions TY,Infrastructure,PURE DATA SOLUTIONS LIMITED,"4,761.44 "
Companies House,CH,31/03/2023,CE Misc Additions TY,Infrastructure,Banner,"8,562.28 "
Companies House,CH,02/03/2023,CHD Invoice Printing,Accounting,PARAGON CUSTOMER COMMUNICATIONS (LONDON),545.91 
Companies House,CH,08/03/2023,CHD Invoice Printing,Accounting,PARAGON CUSTOMER COMMUNICATIONS (LONDON),557.30 
Companies House,CH,20/03/2023,Circuit Rental,Infrastructure,HIGHSPEED OFFICE LTD,"4,041.51 "
Companies House,CH,16/03/2023,Circuit Rental,Infrastructure,HIGHSPEED OFFICE LTD,"18,939 "
Companies House,CH,13/03/2023,Cleaning Contract,Regional Estates - Edinburgh,GOVERNMENT PROPERTY AGENCY (Montagu Evans),"1,088.12 "
Companies House,CH,08/03/2023,Cloud Services,Infrastructure Engineering,Amazon Web Services,651.69 
Companies House,CH,08/03/2023,Cloud Services,Infrastructure Engineering,Amazon Web Services,"3,081.48 "
Companies House,CH,06/03/2023,Cloud Services,Infrastructure Engineering,Amazon Web Services,"181,376.46 "
Companies House,CH,06/03/2023,Consultants Computer,Accounting,Advanced Business Solutions,727.50 
Companies House,CH,06/03/2023,Consultants Computer,Accounting,Advanced Business Solutions,"2,182.50 "
Companies House,CH,06/03/2023,Consultants Computer,Accounting,Advanced Business Solutions,"7,275 "
Companies House,CH,06/03/2023,Consultants Computer,Late Filing Penalties Accounting,Advanced Business Solutions,645 
Companies House,CH,06/03/2023,Consultants Management,Portfolio,DELOITTE LLP LIMITED,"87,600 "
Companies House,CH,06/03/2023,Consultants Management,Portfolio,DELOITTE LLP LIMITED,"150,920 "
Companies House,CH,06/03/2023,Contact Centre,Filing,Arvato Limited,"23,982 "
Companies House,CH,06/03/2023,Contract Staff,Accounting,Hays Specialist Recruitment Ltd,744.30 
Companies House,CH,31/03/2023,Contract Staff,Accounting,Hays Specialist Recruitment Ltd,923.40 
Companies House,CH,06/03/2023,Contract Staff,Accounting,Hays Specialist Recruitment Ltd,923.40 
Companies House,CH,27/03/2023,Contract Staff,Accounting,Hays Specialist Recruitment Ltd,923.40 
Companies House,CH,10/03/2023,Contract Staff,Accounting,Hays Specialist Recruitment Ltd,923.40 
Companies House,CH,16/03/2023,Contract Staff,Accounting,Hays Specialist Recruitment Ltd,923.40 
Companies House,CH,10/03/2023,Contract Staff,Accounting,MICHAEL PAGE INTERNATIONAL RECRUITMENT,"1,778.44 "
Companies House,CH,22/03/2023,Contract Staff,Accounting,MICHAEL PAGE INTERNATIONAL RECRUITMENT,"2,223.05 "
Companies House,CH,31/03/2023,Contract Staff,Accounting,MICHAEL PAGE INTERNATIONAL RECRUITMENT,"2,223.05 "
Companies House,CH,02/03/2023,Contract Staff,Accounting,MICHAEL PAGE INTERNATIONAL RECRUITMENT,"2,223.05 "
Companies House,CH,13/03/2023,Contract Staff,Accounting,MICHAEL PAGE INTERNATIONAL RECRUITMENT,"2,223.05 "
Companies House,CH,31/03/2023,Contract Staff,Accounting,ALEXANDER MANN SOLUTIONS,"3,150.30 "
Companies House,CH,27/03/2023,Contract Staff,Accounting,ALEXANDER MANN SOLUTIONS,"3,150.30 "
Companies House,CH,10/03/2023,Contract Staff,Accounting,ALEXANDER MANN SOLUTIONS,"3,150.30 "
Companies House,CH,22/03/2023,Contract Staff,Accounting,ALEXANDER MANN SOLUTIONS,"3,150.30 "
Companies House,CH,08/03/2023,Contract Staff,Accounting,ALEXANDER MANN SOLUTIONS,"3,150.30 "
Companies House,CH,22/03/2023,Contract Staff,Architecture & Design,ALEXANDER MANN SOLUTIONS,"1,512.14 "
Companies House,CH,06/03/2023,Contract Staff,Architecture & Design,ALEXANDER MANN SOLUTIONS,"2,217.35 "
Companies House,CH,06/03/2023,Contract Staff,Architecture & Design,ALEXANDER MANN SOLUTIONS,"3,024.29 "
Companies House,CH,27/03/2023,Contract Staff,Architecture & Design,ALEXANDER MANN SOLUTIONS,"3,449.18 "
Companies House,CH,22/03/2023,Contract Staff,Architecture & Design,Hays Specialist Recruitment Ltd,"3,486.17 "
Companies House,CH,27/03/2023,Contract Staff,Architecture & Design,ALEXANDER MANN SOLUTIONS,"3,695.58 "
Companies House,CH,31/03/2023,Contract Staff,Architecture & Design,ALEXANDER MANN SOLUTIONS,"3,695.58 "
Companies House,CH,10/03/2023,Contract Staff,Architecture & Design,ALEXANDER MANN SOLUTIONS,"3,695.58 "
Companies House,CH,22/03/2023,Contract Staff,Architecture & Design,ALEXANDER MANN SOLUTIONS,"3,695.58 "
Companies House,CH,31/03/2023,Contract Staff,Architecture & Design,ALEXANDER MANN SOLUTIONS,"3,695.58 "
Companies House,CH,22/03/2023,Contract Staff,Architecture & Design,ALEXANDER MANN SOLUTIONS,"3,695.58 "
Companies House,CH,08/03/2023,Contract Staff,Architecture & Design,ALEXANDER MANN SOLUTIONS,"3,695.58 "
Companies House,CH,10/03/2023,Contract Staff,Architecture & Design,ALEXANDER MANN SOLUTIONS,"3,780.36 "
Companies House,CH,27/03/2023,Contract Staff,Architecture & Design,ALEXANDER MANN SOLUTIONS,"3,780.36 "
Companies House,CH,31/03/2023,Contract Staff,Architecture & Design,ALEXANDER MANN SOLUTIONS,"3,780.36 "
Companies House,CH,06/03/2023,Contract Staff,Architecture & Design,ALEXANDER MANN SOLUTIONS,"3,780.36 "
Companies House,CH,17/03/2023,Contract Staff,Architecture & Design,ALEXANDER MANN SOLUTIONS,"3,780.36 "
Companies House,CH,31/03/2023,Contract Staff,Architecture & Design,ALEXANDER MANN SOLUTIONS,"3,780.36 "
Companies House,CH,10/03/2023,Contract Staff,Architecture & Design,ALEXANDER MANN SOLUTIONS,"3,780.36 "
Companies House,CH,29/03/2023,Contract Staff,Architecture & Design,ALEXANDER MANN SOLUTIONS,"3,780.36 "
Companies House,CH,02/03/2023,Contract Staff,Architecture & Design,ALEXANDER MANN SOLUTIONS,"3,780.36 "
Companies House,CH,27/03/2023,Contract Staff,Architecture & Design,ALEXANDER MANN SOLUTIONS,"3,780.36 "
Companies House,CH,31/03/2023,Contract Staff,Architecture & Design,ALEXANDER MANN SOLUTIONS,"3,780.36 "
Companies House,CH,27/03/2023,Contract Staff,Architecture & Design,ALEXANDER MANN SOLUTIONS,"3,780.36 "
Companies House,CH,22/03/2023,Contract Staff,Architecture & Design,ALEXANDER MANN SOLUTIONS,"3,780.36 "
Companies House,CH,27/03/2023,Contract Staff,Architecture & Design,ALEXANDER MANN SOLUTIONS,"3,780.36 "
Companies House,CH,22/03/2023,Contract Staff,Architecture & Design,ALEXANDER MANN SOLUTIONS,"3,780.36 "
Companies House,CH,10/03/2023,Contract Staff,Architecture & Design,ALEXANDER MANN SOLUTIONS,"3,780.36 "
Companies House,CH,31/03/2023,Contract Staff,Architecture & Design,ALEXANDER MANN SOLUTIONS,"3,780.36 "
Companies House,CH,15/03/2023,Contract Staff,Architecture & Design,Hays Specialist Recruitment Ltd,"4,070.64 "
Companies House,CH,08/03/2023,Contract Staff,Architecture & Design,Hays Specialist Recruitment Ltd,"4,070.64 "
Companies House,CH,22/03/2023,Contract Staff,Architecture & Design,Hays Specialist Recruitment Ltd,"4,070.64 "
Companies House,CH,27/03/2023,Contract Staff,Architecture & Design,ALEXANDER MANN SOLUTIONS,"4,090.44 "
Companies House,CH,22/03/2023,Contract Staff,Architecture & Design,ALEXANDER MANN SOLUTIONS,"4,090.44 "
Companies House,CH,31/03/2023,Contract Staff,Architecture & Design,ALEXANDER MANN SOLUTIONS,"4,090.44 "
Companies House,CH,10/03/2023,Contract Staff,Architecture & Design,ALEXANDER MANN SOLUTIONS,"4,095.36 "
Companies House,CH,31/03/2023,Contract Staff,Architecture & Design,ALEXANDER MANN SOLUTIONS,"4,095.36 "
Companies House,CH,22/03/2023,Contract Staff,Architecture & Design,ALEXANDER MANN SOLUTIONS,"4,095.36 "
Companies House,CH,10/03/2023,Contract Staff,Architecture & Design,ALEXANDER MANN SOLUTIONS,"4,095.36 "
Companies House,CH,22/03/2023,Contract Staff,Architecture & Design,ALEXANDER MANN SOLUTIONS,"4,095.36 "
Companies House,CH,27/03/2023,Contract Staff,Architecture & Design,ALEXANDER MANN SOLUTIONS,"4,095.36 "
Companies House,CH,06/03/2023,Contract Staff,Architecture & Design,ALEXANDER MANN SOLUTIONS,"4,095.36 "
Companies House,CH,29/03/2023,Contract Staff,Architecture & Design,ALEXANDER MANN SOLUTIONS,"4,095.36 "
Companies House,CH,10/03/2023,Contract Staff,Architecture & Design,ALEXANDER MANN SOLUTIONS,"4,311.48 "
Companies House,CH,31/03/2023,Contract Staff,Architecture & Design,ALEXANDER MANN SOLUTIONS,"4,311.48 "
Companies House,CH,10/03/2023,Contract Staff,Architecture & Design,ALEXANDER MANN SOLUTIONS,"4,311.48 "
Companies House,CH,22/03/2023,Contract Staff,Architecture & Design,ALEXANDER MANN SOLUTIONS,"4,311.48 "
Companies House,CH,27/03/2023,Contract Staff,Architecture & Design,ALEXANDER MANN SOLUTIONS,"4,311.48 "
Companies House,CH,31/03/2023,Contract Staff,Architecture & Design,ALEXANDER MANN SOLUTIONS,"4,311.48 "
Companies House,CH,06/03/2023,Contract Staff,Architecture & Design,ALEXANDER MANN SOLUTIONS,"4,311.48 "
Companies House,CH,17/03/2023,Contract Staff,Architecture & Design,ALEXANDER MANN SOLUTIONS,"4,311.48 "
Companies House,CH,06/03/2023,Contract Staff,Architecture & Design,ALEXANDER MANN SOLUTIONS,"4,311.48 "
Companies House,CH,15/03/2023,Contract Staff,Architecture & Design,ALEXANDER MANN SOLUTIONS,"4,460.76 "
Companies House,CH,06/03/2023,Contract Staff,Architecture & Design,ALEXANDER MANN SOLUTIONS,"4,460.76 "
Companies House,CH,06/03/2023,Contract Staff,Architecture & Design,ALEXANDER MANN SOLUTIONS,"4,460.76 "
Companies House,CH,10/03/2023,Contract Staff,Architecture & Design,ALEXANDER MANN SOLUTIONS,"4,460.76 "
Companies House,CH,22/03/2023,Contract Staff,Architecture & Design,ALEXANDER MANN SOLUTIONS,"4,460.76 "
Companies House,CH,27/03/2023,Contract Staff,Architecture & Design,ALEXANDER MANN SOLUTIONS,"4,460.76 "
Companies House,CH,22/03/2023,Contract Staff,Architecture & Design,ALEXANDER MANN SOLUTIONS,"4,460.76 "
Companies House,CH,22/03/2023,Contract Staff,Architecture & Design,ALEXANDER MANN SOLUTIONS,"4,601.76 "
Companies House,CH,10/03/2023,Contract Staff,Architecture & Design,ALEXANDER MANN SOLUTIONS,"4,601.76 "
Companies House,CH,06/03/2023,Contract Staff,Architecture & Design,ALEXANDER MANN SOLUTIONS,"4,601.76 "
Companies House,CH,31/03/2023,Contract Staff,Architecture & Design,ALEXANDER MANN SOLUTIONS,"4,601.76 "
Companies House,CH,27/03/2023,Contract Staff,Architecture & Design,ALEXANDER MANN SOLUTIONS,"4,601.76 "
Companies House,CH,02/03/2023,Contract Staff,Architecture & Design,ALEXANDER MANN SOLUTIONS,"4,601.76 "
Companies House,CH,27/03/2023,Contract Staff,Architecture & Design,ALEXANDER MANN SOLUTIONS,"4,772.22 "
Companies House,CH,31/03/2023,Contract Staff,Architecture & Design,ALEXANDER MANN SOLUTIONS,"4,772.22 "
Companies House,CH,08/03/2023,Contract Staff,Architecture & Design,Hays Specialist Recruitment Ltd,"4,980.24 "
Companies House,CH,15/03/2023,Contract Staff,Architecture & Design,Hays Specialist Recruitment Ltd,"4,980.24 "
Companies House,CH,10/03/2023,Contract Staff,Architecture & Design,ALEXANDER MANN SOLUTIONS,"5,040.48 "
Companies House,CH,06/03/2023,Contract Staff,Architecture & Design,ALEXANDER MANN SOLUTIONS,"5,040.48 "
Companies House,CH,02/03/2023,Contract Staff,Architecture & Design,ALEXANDER MANN SOLUTIONS,"5,040.48 "
Companies House,CH,31/03/2023,Contract Staff,Architecture & Design,ALEXANDER MANN SOLUTIONS,"5,040.48 "
Companies House,CH,27/03/2023,Contract Staff,Architecture & Design,ALEXANDER MANN SOLUTIONS,"5,040.48 "
Companies House,CH,22/03/2023,Contract Staff,Architecture & Design,ALEXANDER MANN SOLUTIONS,"5,040.48 "
Companies House,CH,27/03/2023,Contract Staff,Architecture & Design,ALEXANDER MANN SOLUTIONS,"7,391.16 "
Companies House,CH,31/03/2023,Contract Staff,Architecture & Design,ALEXANDER MANN SOLUTIONS,"8,190.72 "
Companies House,CH,31/03/2023,Contract Staff,Architecture & Design,ALEXANDER MANN SOLUTIONS,"8,921.52 "
Companies House,CH,06/03/2023,Contract Staff,Architecture & Design,ALEXANDER MANN SOLUTIONS,"9,544.44 "
Companies House,CH,22/03/2023,Contract Staff,Architecture & Design,ALEXANDER MANN SOLUTIONS,"9,544.44 "
Companies House,CH,13/03/2023,Contract Staff,Architecture & Design,ALEXANDER MANN SOLUTIONS,"11,341.08 "
Companies House,CH,10/03/2023,Contract Staff,Architecture & Design,ALEXANDER MANN SOLUTIONS,"12,271.32 "
Companies House,CH,02/03/2023,Contract Staff,Architecture & Design,ALEXANDER MANN SOLUTIONS,"12,286.08 "
Companies House,CH,31/03/2023,Contract Staff,"Data, Analytics & Research",ALEXANDER MANN SOLUTIONS,"2,268.19 "
Companies House,CH,13/03/2023,Contract Staff,"Data, Analytics & Research",ALEXANDER MANN SOLUTIONS,"2,835.24 "
Companies House,CH,27/03/2023,Contract Staff,"Data, Analytics & Research",ALEXANDER MANN SOLUTIONS,"2,835.24 "
Companies House,CH,31/03/2023,Contract Staff,"Data, Analytics & Research",ALEXANDER MANN SOLUTIONS,"4,095.36 "
Companies House,CH,27/03/2023,Contract Staff,"Data, Analytics & Research",ALEXANDER MANN SOLUTIONS,"4,095.36 "
Companies House,CH,22/03/2023,Contract Staff,"Data, Analytics & Research",ALEXANDER MANN SOLUTIONS,"4,095.36 "
Companies House,CH,13/03/2023,Contract Staff,"Data, Analytics & Research",ALEXANDER MANN SOLUTIONS,"4,095.36 "
Companies House,CH,31/03/2023,Contract Staff,"Data, Analytics & Research",ALEXANDER MANN SOLUTIONS,"4,095.36 "
Companies House,CH,02/03/2023,Contract Staff,"Data, Analytics & Research",ALEXANDER MANN SOLUTIONS,"4,095.36 "
Companies House,CH,06/03/2023,Contract Staff,"Data, Analytics & Research",ALEXANDER MANN SOLUTIONS,"4,095.36 "
Companies House,CH,13/03/2023,Contract Staff,"Data, Analytics & Research",ALEXANDER MANN SOLUTIONS,"4,095.36 "
Companies House,CH,22/03/2023,Contract Staff,"Data, Analytics & Research",Hays Specialist Recruitment Ltd,"4,595.82 "
Companies House,CH,02/03/2023,Contract Staff,"Data, Analytics & Research",Hays Specialist Recruitment Ltd,"4,595.82 "
Companies House,CH,15/03/2023,Contract Staff,"Data, Analytics & Research",Hays Specialist Recruitment Ltd,"4,595.82 "
Companies House,CH,08/03/2023,Contract Staff,"Data, Analytics & Research",Hays Specialist Recruitment Ltd,"4,595.82 "
Companies House,CH,08/03/2023,Contract Staff,"Data, Analytics & Research",ALEXANDER MANN SOLUTIONS,"5,670.48 "
Companies House,CH,22/03/2023,Contract Staff,"Data, Analytics & Research",ALEXANDER MANN SOLUTIONS,"5,670.48 "
Companies House,CH,15/03/2023,Contract Staff,"Data, Analytics & Research",ALEXANDER MANN SOLUTIONS,"6,552.58 "
Companies House,CH,02/03/2023,Contract Staff,"Data, Analytics & Research",ALEXANDER MANN SOLUTIONS,"8,190.72 "
Companies House,CH,27/03/2023,Contract Staff,"Data, Analytics & Research",ALEXANDER MANN SOLUTIONS,"8,190.72 "
Companies House,CH,10/03/2023,Contract Staff,"Data, Analytics & Research",ALEXANDER MANN SOLUTIONS,"10,647.94 "
Companies House,CH,31/03/2023,Contract Staff,"Data, Analytics & Research",ALEXANDER MANN SOLUTIONS,"12,286.08 "
Companies House,CH,31/03/2023,Contract Staff,Directorate,ALEXANDER MANN SOLUTIONS,"6,930.66 "
Companies House,CH,10/03/2023,Contract Staff,Directorate,ALEXANDER MANN SOLUTIONS,"6,930.66 "
Companies House,CH,27/03/2023,Contract Staff,Directorate,ALEXANDER MANN SOLUTIONS,"11,383.06 "
Companies House,CH,06/03/2023,Contract Staff,Directorate,ALEXANDER MANN SOLUTIONS,"13,861.32 "
Companies House,CH,10/03/2023,Contract Staff,HR Strategy & Policy,ALEXANDER MANN SOLUTIONS,"2,495.04 "
Companies House,CH,27/03/2023,Contract Staff,HR Strategy & Policy,ALEXANDER MANN SOLUTIONS,"2,520.24 "
Companies House,CH,06/03/2023,Contract Staff,HR Strategy & Policy,ALEXANDER MANN SOLUTIONS,"3,118.80 "
Companies House,CH,27/03/2023,Contract Staff,HR Strategy & Policy,ALEXANDER MANN SOLUTIONS,"3,118.80 "
Companies House,CH,22/03/2023,Contract Staff,HR Strategy & Policy,ALEXANDER MANN SOLUTIONS,"3,118.80 "
Companies House,CH,31/03/2023,Contract Staff,HR Strategy & Policy,ALEXANDER MANN SOLUTIONS,"3,118.80 "
Companies House,CH,31/03/2023,Contract Staff,Infrastructure,Hays Specialist Recruitment Ltd,"4,070.64 "
Companies House,CH,08/03/2023,Contract Staff,Infrastructure,Hays Specialist Recruitment Ltd,"4,070.64 "
Companies House,CH,22/03/2023,Contract Staff,Infrastructure,Hays Specialist Recruitment Ltd,"4,070.64 "
Companies House,CH,02/03/2023,Contract Staff,Infrastructure,Hays Specialist Recruitment Ltd,"4,070.64 "
Companies House,CH,22/03/2023,Contract Staff,Infrastructure,Hays Specialist Recruitment Ltd,"4,070.64 "
Companies House,CH,22/03/2023,Contract Staff,Infrastructure,Spring Technology Staffing Services Ltd,"4,264.50 "
Companies House,CH,13/03/2023,Contract Staff,Infrastructure,Spring Technology Staffing Services Ltd,"4,264.50 "
Companies House,CH,02/03/2023,Contract Staff,Infrastructure,Spring Technology Staffing Services Ltd,"4,264.50 "
Companies House,CH,10/03/2023,Contract Staff,Infrastructure,Spring Technology Staffing Services Ltd,"4,264.50 "
Companies House,CH,15/03/2023,Contract Staff,Infrastructure,Spring Technology Staffing Services Ltd,"4,264.50 "
Companies House,CH,27/03/2023,Contract Staff,Infrastructure Engineering,ALEXANDER MANN SOLUTIONS,"3,024.29 "
Companies House,CH,31/03/2023,Contract Staff,Infrastructure Engineering,ALEXANDER MANN SOLUTIONS,"3,024.29 "
Companies House,CH,13/03/2023,Contract Staff,Infrastructure Engineering,CONCEPT RESOURCING T/A CONCEPT INFORMATION,"3,274.50 "
Companies House,CH,22/03/2023,Contract Staff,Infrastructure Engineering,CONCEPT RESOURCING T/A CONCEPT INFORMATION,"3,274.50 "
Companies House,CH,06/03/2023,Contract Staff,Infrastructure Engineering,CONCEPT RESOURCING T/A CONCEPT INFORMATION,"3,274.50 "
Companies House,CH,31/03/2023,Contract Staff,Infrastructure Engineering,CONCEPT RESOURCING T/A CONCEPT INFORMATION,"3,274.50 "
Companies House,CH,27/03/2023,Contract Staff,Infrastructure Engineering,CONCEPT RESOURCING T/A CONCEPT INFORMATION,"3,274.50 "
Companies House,CH,22/03/2023,Contract Staff,Infrastructure Engineering,Spring Technology Staffing Services Ltd,"3,750 "
Companies House,CH,13/03/2023,Contract Staff,Infrastructure Engineering,Spring Technology Staffing Services Ltd,"3,750 "
Companies House,CH,02/03/2023,Contract Staff,Infrastructure Engineering,Spring Technology Staffing Services Ltd,"3,750 "
Companies House,CH,29/03/2023,Contract Staff,Infrastructure Engineering,Spring Technology Staffing Services Ltd,"3,750 "
Companies House,CH,10/03/2023,Contract Staff,Infrastructure Engineering,Spring Technology Staffing Services Ltd,"3,750 "
Companies House,CH,22/03/2023,Contract Staff,Infrastructure Engineering,Spring Technology Staffing Services Ltd,"3,750 "
Companies House,CH,10/03/2023,Contract Staff,Infrastructure Engineering,ALEXANDER MANN SOLUTIONS,"3,780.36 "
Companies House,CH,17/03/2023,Contract Staff,Infrastructure Engineering,ALEXANDER MANN SOLUTIONS,"3,780.36 "
Companies House,CH,27/03/2023,Contract Staff,Infrastructure Engineering,ALEXANDER MANN SOLUTIONS,"4,095.36 "
Companies House,CH,22/03/2023,Contract Staff,Infrastructure Engineering,ALEXANDER MANN SOLUTIONS,"4,095.36 "
Companies House,CH,31/03/2023,Contract Staff,Infrastructure Engineering,ALEXANDER MANN SOLUTIONS,"4,095.36 "
Companies House,CH,06/03/2023,Contract Staff,Infrastructure Engineering,ALEXANDER MANN SOLUTIONS,"4,095.36 "
Companies House,CH,17/03/2023,Contract Staff,Infrastructure Engineering,ALEXANDER MANN SOLUTIONS,"4,410.42 "
Companies House,CH,17/03/2023,Contract Staff,Infrastructure Engineering,ALEXANDER MANN SOLUTIONS,"4,410.42 "
Companies House,CH,31/03/2023,Contract Staff,Infrastructure Engineering,ALEXANDER MANN SOLUTIONS,"4,410.42 "
Companies House,CH,27/03/2023,Contract Staff,Infrastructure Engineering,ALEXANDER MANN SOLUTIONS,"4,410.42 "
Companies House,CH,06/03/2023,Contract Staff,Infrastructure Engineering,ALEXANDER MANN SOLUTIONS,"4,410.42 "
Companies House,CH,27/03/2023,Contract Staff,Infrastructure Engineering,ALEXANDER MANN SOLUTIONS,"4,410.42 "
Companies House,CH,31/03/2023,Contract Staff,Infrastructure Engineering,ALEXANDER MANN SOLUTIONS,"4,410.42 "
Companies House,CH,06/03/2023,Contract Staff,Infrastructure Engineering,ALEXANDER MANN SOLUTIONS,"7,560.72 "
Companies House,CH,10/03/2023,Contract Staff,Infrastructure Engineering,ALEXANDER MANN SOLUTIONS,"8,190.72 "
Companies House,CH,10/03/2023,Contract Staff,Infrastructure Engineering,ALEXANDER MANN SOLUTIONS,"8,820.84 "
Companies House,CH,10/03/2023,Contract Staff,Infrastructure Engineering,ALEXANDER MANN SOLUTIONS,"8,820.84 "
Companies House,CH,06/03/2023,Contract Staff,Infrastructure Engineering,ALEXANDER MANN SOLUTIONS,"11,467.09 "
Companies House,CH,31/03/2023,Contract Staff,Late Filing Penalties,ALEXANDER MANN SOLUTIONS,(871.87)
Companies House,CH,31/03/2023,Contract Staff,Late Filing Penalties,ALEXANDER MANN SOLUTIONS,630.96 
Companies House,CH,22/03/2023,Contract Staff,Late Filing Penalties,ALEXANDER MANN SOLUTIONS,653.90 
Companies House,CH,10/03/2023,Contract Staff,Late Filing Penalties,ALEXANDER MANN SOLUTIONS,665.56 
Companies House,CH,31/03/2023,Contract Staff,Late Filing Penalties,ALEXANDER MANN SOLUTIONS,665.56 
Companies House,CH,22/03/2023,Contract Staff,Late Filing Penalties,ALEXANDER MANN SOLUTIONS,665.56 
Companies House,CH,27/03/2023,Contract Staff,Late Filing Penalties,ALEXANDER MANN SOLUTIONS,665.56 
Companies House,CH,27/03/2023,Contract Staff,Late Filing Penalties,ALEXANDER MANN SOLUTIONS,665.56 
Companies House,CH,27/03/2023,Contract Staff,Late Filing Penalties,ALEXANDER MANN SOLUTIONS,665.56 
Companies House,CH,10/03/2023,Contract Staff,Late Filing Penalties,ALEXANDER MANN SOLUTIONS,665.56 
Companies House,CH,06/03/2023,Contract Staff,Late Filing Penalties,ALEXANDER MANN SOLUTIONS,665.56 
Companies House,CH,22/03/2023,Contract Staff,Late Filing Penalties,ALEXANDER MANN SOLUTIONS,665.56 
Companies House,CH,31/03/2023,Contract Staff,Late Filing Penalties,ALEXANDER MANN SOLUTIONS,665.56 
Companies House,CH,22/03/2023,Contract Staff,Late Filing Penalties,ALEXANDER MANN SOLUTIONS,665.56 
Companies House,CH,06/03/2023,Contract Staff,Late Filing Penalties,ALEXANDER MANN SOLUTIONS,665.56 
Companies House,CH,17/03/2023,Contract Staff,Late Filing Penalties,ALEXANDER MANN SOLUTIONS,688.32 
Companies House,CH,10/03/2023,Contract Staff,Late Filing Penalties,ALEXANDER MANN SOLUTIONS,688.32 
Companies House,CH,27/03/2023,Contract Staff,Late Filing Penalties,ALEXANDER MANN SOLUTIONS,688.32 
Companies House,CH,27/03/2023,Contract Staff,Late Filing Penalties,ALEXANDER MANN SOLUTIONS,803.04 
Companies House,CH,27/03/2023,Contract Staff,Late Filing Penalties,ALEXANDER MANN SOLUTIONS,860.40 
Companies House,CH,10/03/2023,Contract Staff,Late Filing Penalties,ALEXANDER MANN SOLUTIONS,860.40 
Companies House,CH,06/03/2023,Contract Staff,Late Filing Penalties,ALEXANDER MANN SOLUTIONS,860.40 
Companies House,CH,31/03/2023,Contract Staff,Late Filing Penalties,ALEXANDER MANN SOLUTIONS,860.40 
Companies House,CH,06/03/2023,Contract Staff,Late Filing Penalties,ALEXANDER MANN SOLUTIONS,860.40 
Companies House,CH,22/03/2023,Contract Staff,Late Filing Penalties,ALEXANDER MANN SOLUTIONS,860.40 
Companies House,CH,06/03/2023,Contract Staff,Late Filing Penalties,ALEXANDER MANN SOLUTIONS,860.40 
Companies House,CH,17/03/2023,Contract Staff,Late Filing Penalties,ALEXANDER MANN SOLUTIONS,860.40 
Companies House,CH,27/03/2023,Contract Staff,Late Filing Penalties,ALEXANDER MANN SOLUTIONS,860.40 
Companies House,CH,27/03/2023,Contract Staff,Late Filing Penalties,ALEXANDER MANN SOLUTIONS,860.40 
Companies House,CH,31/03/2023,Contract Staff,Late Filing Penalties,ALEXANDER MANN SOLUTIONS,860.40 
Companies House,CH,10/03/2023,Contract Staff,Late Filing Penalties,ALEXANDER MANN SOLUTIONS,860.40 
Companies House,CH,31/03/2023,Contract Staff,Late Filing Penalties,ALEXANDER MANN SOLUTIONS,860.40 
Companies House,CH,10/03/2023,Contract Staff,Late Filing Penalties,ALEXANDER MANN SOLUTIONS,860.40 
Companies House,CH,10/03/2023,Contract Staff,Late Filing Penalties,ALEXANDER MANN SOLUTIONS,860.40 
Companies House,CH,31/03/2023,Contract Staff,Late Filing Penalties,ALEXANDER MANN SOLUTIONS,860.40 
Companies House,CH,27/03/2023,Contract Staff,Late Filing Penalties,ALEXANDER MANN SOLUTIONS,860.40 
Companies House,CH,06/03/2023,Contract Staff,Late Filing Penalties,ALEXANDER MANN SOLUTIONS,860.40 
Companies House,CH,06/03/2023,Contract Staff,Late Filing Penalties,ALEXANDER MANN SOLUTIONS,860.40 
Companies House,CH,22/03/2023,Contract Staff,Late Filing Penalties,ALEXANDER MANN SOLUTIONS,860.40 
Companies House,CH,31/03/2023,Contract Staff,Late Filing Penalties,ALEXANDER MANN SOLUTIONS,860.40 
Companies House,CH,06/03/2023,Contract Staff,Late Filing Penalties,ALEXANDER MANN SOLUTIONS,860.40 
Companies House,CH,17/03/2023,Contract Staff,Late Filing Penalties,ALEXANDER MANN SOLUTIONS,860.40 
Companies House,CH,27/03/2023,Contract Staff,Late Filing Penalties,ALEXANDER MANN SOLUTIONS,860.40 
Companies House,CH,31/03/2023,Contract Staff,Late Filing Penalties,ALEXANDER MANN SOLUTIONS,860.40 
Companies House,CH,27/03/2023,Contract Staff,Late Filing Penalties,ALEXANDER MANN SOLUTIONS,860.40 
Companies House,CH,10/03/2023,Contract Staff,Late Filing Penalties,ALEXANDER MANN SOLUTIONS,860.40 
Companies House,CH,27/03/2023,Contract Staff,Late Filing Penalties,ALEXANDER MANN SOLUTIONS,860.40 
Companies House,CH,22/03/2023,Contract Staff,Late Filing Penalties,ALEXANDER MANN SOLUTIONS,860.40 
Companies House,CH,31/03/2023,Contract Staff,Late Filing Penalties,ALEXANDER MANN SOLUTIONS,860.40 
Companies House,CH,27/03/2023,Contract Staff,Late Filing Penalties,ALEXANDER MANN SOLUTIONS,860.40 
Companies House,CH,06/03/2023,Contract Staff,Late Filing Penalties,ALEXANDER MANN SOLUTIONS,860.40 
Companies House,CH,27/03/2023,Contract Staff,Late Filing Penalties,ALEXANDER MANN SOLUTIONS,860.40 
Companies House,CH,31/03/2023,Contract Staff,Late Filing Penalties,ALEXANDER MANN SOLUTIONS,860.40 
Companies House,CH,06/03/2023,Contract Staff,Late Filing Penalties,ALEXANDER MANN SOLUTIONS,860.40 
Companies House,CH,31/03/2023,Contract Staff,Late Filing Penalties,ALEXANDER MANN SOLUTIONS,860.40 
Companies House,CH,27/03/2023,Contract Staff,Late Filing Penalties,ALEXANDER MANN SOLUTIONS,860.40 
Companies House,CH,10/03/2023,Contract Staff,Late Filing Penalties,ALEXANDER MANN SOLUTIONS,860.40 
Companies House,CH,22/03/2023,Contract Staff,Late Filing Penalties,ALEXANDER MANN SOLUTIONS,860.40 
Companies House,CH,10/03/2023,Contract Staff,Late Filing Penalties,ALEXANDER MANN SOLUTIONS,860.40 
Companies House,CH,31/03/2023,Contract Staff,Late Filing Penalties,ALEXANDER MANN SOLUTIONS,860.40 
Companies House,CH,06/03/2023,Contract Staff,Late Filing Penalties,ALEXANDER MANN SOLUTIONS,860.40 
Companies House,CH,31/03/2023,Contract Staff,Late Filing Penalties,ALEXANDER MANN SOLUTIONS,860.40 
Companies House,CH,22/03/2023,Contract Staff,Late Filing Penalties,ALEXANDER MANN SOLUTIONS,871.87 
Companies House,CH,10/03/2023,Contract Staff,Late Filing Penalties,ALEXANDER MANN SOLUTIONS,871.87 
Companies House,CH,22/03/2023,Contract Staff,Late Filing Penalties,ALEXANDER MANN SOLUTIONS,"1,204.56 "
Companies House,CH,22/03/2023,Contract Staff,Late Filing Penalties,ALEXANDER MANN SOLUTIONS,"1,720.80 "
Companies House,CH,17/03/2023,Contract Staff,Late Filing Penalties,INNOVO LAW LTD,"2,600 "
Companies House,CH,22/03/2023,Contract Staff,Organisation Dev & Design,ALEXANDER MANN SOLUTIONS,"3,150.30 "
Companies House,CH,31/03/2023,Contract Staff,Organisation Dev & Design,ALEXANDER MANN SOLUTIONS,"3,150.30 "
Companies House,CH,10/03/2023,Contract Staff,Organisation Dev & Design,ALEXANDER MANN SOLUTIONS,"8,820.85 "
Companies House,CH,27/03/2023,Contract Staff,Portfolio,ALEXANDER MANN SOLUTIONS,"4,410.42 "
Companies House,CH,31/03/2023,Contract Staff,Portfolio,ALEXANDER MANN SOLUTIONS,"4,410.42 "
Companies House,CH,17/03/2023,Contract Staff,Portfolio,ALEXANDER MANN SOLUTIONS,"4,410.42 "
Companies House,CH,10/03/2023,Contract Staff,Portfolio,ALEXANDER MANN SOLUTIONS,"4,410.42 "
Companies House,CH,06/03/2023,Contract Staff,Portfolio,ALEXANDER MANN SOLUTIONS,"4,410.42 "
Companies House,CH,31/03/2023,Contract Staff,Procurement,ALEXANDER MANN SOLUTIONS,"1,299.80 "
Companies House,CH,08/03/2023,Contract Staff,Procurement,ALEXANDER MANN SOLUTIONS,"3,024.29 "
Companies House,CH,31/03/2023,Contract Staff,Procurement,ALEXANDER MANN SOLUTIONS,"3,184.70 "
Companies House,CH,22/03/2023,Contract Staff,Procurement,ALEXANDER MANN SOLUTIONS,"3,449.18 "
Companies House,CH,02/03/2023,Contract Staff,Procurement,ALEXANDER MANN SOLUTIONS,"3,780.36 "
Companies House,CH,13/03/2023,Contract Staff,Procurement,ALEXANDER MANN SOLUTIONS,"3,780.36 "
Companies House,CH,31/03/2023,Contract Staff,Procurement,ALEXANDER MANN SOLUTIONS,"3,780.36 "
Companies House,CH,22/03/2023,Contract Staff,Procurement,ALEXANDER MANN SOLUTIONS,"3,780.36 "
Companies House,CH,22/03/2023,Contract Staff,Procurement,MICHAEL PAGE INTERNATIONAL RECRUITMENT,"3,980 "
Companies House,CH,08/03/2023,Contract Staff,Procurement,MICHAEL PAGE INTERNATIONAL RECRUITMENT,"3,980 "
Companies House,CH,27/03/2023,Contract Staff,Procurement,ALEXANDER MANN SOLUTIONS,"3,980.88 "
Companies House,CH,06/03/2023,Contract Staff,Procurement,ALEXANDER MANN SOLUTIONS,"3,980.88 "
Companies House,CH,06/03/2023,Contract Staff,Procurement,ALEXANDER MANN SOLUTIONS,"4,252.86 "
Companies House,CH,27/03/2023,Contract Staff,Procurement,ALEXANDER MANN SOLUTIONS,"4,252.86 "
Companies House,CH,22/03/2023,Contract Staff,Procurement,ALEXANDER MANN SOLUTIONS,"4,252.86 "
Companies House,CH,10/03/2023,Contract Staff,Procurement,ALEXANDER MANN SOLUTIONS,"4,252.86 "
Companies House,CH,31/03/2023,Contract Staff,Procurement,ALEXANDER MANN SOLUTIONS,"4,252.86 "
Companies House,CH,02/03/2023,Contract Staff,Procurement,ALEXANDER MANN SOLUTIONS,"4,311.48 "
Companies House,CH,31/03/2023,Contract Staff,Procurement,ALEXANDER MANN SOLUTIONS,"4,311.48 "
Companies House,CH,08/03/2023,Contract Staff,Procurement,ALEXANDER MANN SOLUTIONS,"4,567.92 "
Companies House,CH,31/03/2023,Contract Staff,Procurement,ALEXANDER MANN SOLUTIONS,"4,567.92 "
Companies House,CH,22/03/2023,Contract Staff,Procurement,ALEXANDER MANN SOLUTIONS,"4,567.92 "
Companies House,CH,31/03/2023,Contract Staff,Procurement,ALEXANDER MANN SOLUTIONS,"4,567.92 "
Companies House,CH,31/03/2023,Contract Staff,Procurement,ALEXANDER MANN SOLUTIONS,"4,567.92 "
Companies House,CH,22/03/2023,Contract Staff,Procurement,Hays Specialist Recruitment Ltd,"4,845.18 "
Companies House,CH,08/03/2023,Contract Staff,Procurement,Hays Specialist Recruitment Ltd,"4,845.18 "
Companies House,CH,02/03/2023,Contract Staff,Procurement,Hays Specialist Recruitment Ltd,"4,845.18 "
Companies House,CH,08/03/2023,Contract Staff,Procurement,Hays Specialist Recruitment Ltd,"4,845.18 "
Companies House,CH,31/03/2023,Contract Staff,Procurement,Hays Specialist Recruitment Ltd,"4,845.18 "
Companies House,CH,02/03/2023,Contract Staff,Procurement,Hays Specialist Recruitment Ltd,"4,845.18 "
Companies House,CH,22/03/2023,Contract Staff,Procurement,Hays Specialist Recruitment Ltd,"4,845.18 "
Companies House,CH,16/03/2023,Contract Staff,Procurement,Hays Specialist Recruitment Ltd,"4,845.18 "
Companies House,CH,22/03/2023,Contract Staff,Procurement,Hays Specialist Recruitment Ltd,"4,845.18 "
Companies House,CH,31/03/2023,Contract Staff,Procurement,Hays Specialist Recruitment Ltd,"4,845.18 "
Companies House,CH,08/03/2023,Contract Staff,Procurement,Hays Specialist Recruitment Ltd,"4,845.18 "
Companies House,CH,02/03/2023,Contract Staff,Procurement,Hays Specialist Recruitment Ltd,"4,845.18 "
Companies House,CH,31/03/2023,Contract Staff,Procurement,ALEXANDER MANN SOLUTIONS,"4,934.64 "
Companies House,CH,31/03/2023,Contract Staff,Procurement,ALEXANDER MANN SOLUTIONS,"4,934.64 "
Companies House,CH,17/03/2023,Contract Staff,Procurement,ALEXANDER MANN SOLUTIONS,"5,175.14 "
Companies House,CH,27/03/2023,Contract Staff,Procurement,ALEXANDER MANN SOLUTIONS,"7,560.72 "
Companies House,CH,27/03/2023,Contract Staff,Product Design,ALEXANDER MANN SOLUTIONS,"2,394.22 "
Companies House,CH,06/03/2023,Contract Staff,Product Design,ALEXANDER MANN SOLUTIONS,"3,276.29 "
Companies House,CH,17/03/2023,Contract Staff,Product Design,ALEXANDER MANN SOLUTIONS,"3,528.34 "
Companies House,CH,31/03/2023,Contract Staff,Product Design,ALEXANDER MANN SOLUTIONS,"4,095.36 "
Companies House,CH,22/03/2023,Contract Staff,Product Design,ALEXANDER MANN SOLUTIONS,"4,095.36 "
Companies House,CH,31/03/2023,Contract Staff,Product Design,ALEXANDER MANN SOLUTIONS,"4,095.36 "
Companies House,CH,17/03/2023,Contract Staff,Product Design,ALEXANDER MANN SOLUTIONS,"4,095.36 "
Companies House,CH,06/03/2023,Contract Staff,Product Design,ALEXANDER MANN SOLUTIONS,"4,095.36 "
Companies House,CH,10/03/2023,Contract Staff,Product Design,ALEXANDER MANN SOLUTIONS,"4,095.36 "
Companies House,CH,22/03/2023,Contract Staff,Product Design,ALEXANDER MANN SOLUTIONS,"4,095.36 "
Companies House,CH,29/03/2023,Contract Staff,Product Design,ALEXANDER MANN SOLUTIONS,"4,095.36 "
Companies House,CH,27/03/2023,Contract Staff,Product Design,ALEXANDER MANN SOLUTIONS,"4,095.36 "
Companies House,CH,22/03/2023,Contract Staff,Product Design,ALEXANDER MANN SOLUTIONS,"4,095.36 "
Companies House,CH,31/03/2023,Contract Staff,Product Design,ALEXANDER MANN SOLUTIONS,"4,095.36 "
Companies House,CH,06/03/2023,Contract Staff,Product Design,ALEXANDER MANN SOLUTIONS,"4,095.36 "
Companies House,CH,27/03/2023,Contract Staff,Product Design,ALEXANDER MANN SOLUTIONS,"4,095.36 "
Companies House,CH,10/03/2023,Contract Staff,Product Design,ALEXANDER MANN SOLUTIONS,"4,095.36 "
Companies House,CH,27/03/2023,Contract Staff,Product Design,ALEXANDER MANN SOLUTIONS,"4,095.36 "
Companies House,CH,31/03/2023,Contract Staff,Product Design,ALEXANDER MANN SOLUTIONS,"4,095.36 "
Companies House,CH,06/03/2023,Contract Staff,Product Design,ALEXANDER MANN SOLUTIONS,"4,252.86 "
Companies House,CH,31/03/2023,Contract Staff,Product Design,ALEXANDER MANN SOLUTIONS,"4,252.86 "
Companies House,CH,22/03/2023,Contract Staff,Product Design,ALEXANDER MANN SOLUTIONS,"4,252.86 "
Companies House,CH,02/03/2023,Contract Staff,Product Design,ALEXANDER MANN SOLUTIONS,"4,252.86 "
Companies House,CH,13/03/2023,Contract Staff,Product Design,ALEXANDER MANN SOLUTIONS,"4,252.86 "
Companies House,CH,31/03/2023,Contract Staff,Product Design,ALEXANDER MANN SOLUTIONS,"4,252.86 "
Companies House,CH,22/03/2023,Contract Staff,Product Design,ALEXANDER MANN SOLUTIONS,"4,311.48 "
Companies House,CH,31/03/2023,Contract Staff,Product Design,ALEXANDER MANN SOLUTIONS,"4,311.48 "
Companies House,CH,27/03/2023,Contract Staff,Product Design,ALEXANDER MANN SOLUTIONS,"4,311.48 "
Companies House,CH,10/03/2023,Contract Staff,Product Design,ALEXANDER MANN SOLUTIONS,"4,311.48 "
Companies House,CH,06/03/2023,Contract Staff,Product Design,ALEXANDER MANN SOLUTIONS,"4,311.48 "
Companies House,CH,10/03/2023,Contract Staff,Product Design,ALEXANDER MANN SOLUTIONS,"4,410.42 "
Companies House,CH,06/03/2023,Contract Staff,Product Design,ALEXANDER MANN SOLUTIONS,"4,410.42 "
Companies House,CH,22/03/2023,Contract Staff,Product Design,ALEXANDER MANN SOLUTIONS,"4,410.42 "
Companies House,CH,10/03/2023,Contract Staff,Product Design,ALEXANDER MANN SOLUTIONS,"4,410.42 "
Companies House,CH,06/03/2023,Contract Staff,Product Design,ALEXANDER MANN SOLUTIONS,"4,410.42 "
Companies House,CH,31/03/2023,Contract Staff,Product Design,ALEXANDER MANN SOLUTIONS,"4,410.42 "
Companies House,CH,02/03/2023,Contract Staff,Product Design,ALEXANDER MANN SOLUTIONS,"4,410.42 "
Companies House,CH,31/03/2023,Contract Staff,Product Design,ALEXANDER MANN SOLUTIONS,"4,410.42 "
Companies House,CH,27/03/2023,Contract Staff,Product Design,ALEXANDER MANN SOLUTIONS,"4,410.42 "
Companies House,CH,10/03/2023,Contract Staff,Product Design,ALEXANDER MANN SOLUTIONS,"4,410.42 "
Companies House,CH,27/03/2023,Contract Staff,Product Design,ALEXANDER MANN SOLUTIONS,"4,410.42 "
Companies House,CH,17/03/2023,Contract Staff,Product Design,ALEXANDER MANN SOLUTIONS,"4,410.42 "
Companies House,CH,10/03/2023,Contract Staff,Product Design,ALEXANDER MANN SOLUTIONS,"4,410.42 "
Companies House,CH,08/03/2023,Contract Staff,Product Design,ALEXANDER MANN SOLUTIONS,"4,410.42 "
Companies House,CH,10/03/2023,Contract Staff,Product Design,ALEXANDER MANN SOLUTIONS,"4,410.42 "
Companies House,CH,31/03/2023,Contract Staff,Product Design,ALEXANDER MANN SOLUTIONS,"4,410.42 "
Companies House,CH,02/03/2023,Contract Staff,Product Design,ALEXANDER MANN SOLUTIONS,"4,410.42 "
Companies House,CH,22/03/2023,Contract Staff,Product Design,ALEXANDER MANN SOLUTIONS,"4,410.42 "
Companies House,CH,27/03/2023,Contract Staff,Product Design,ALEXANDER MANN SOLUTIONS,"4,410.42 "
Companies House,CH,31/03/2023,Contract Staff,Product Design,ALEXANDER MANN SOLUTIONS,"4,410.42 "
Companies House,CH,06/03/2023,Contract Staff,Product Design,ALEXANDER MANN SOLUTIONS,"4,410.42 "
Companies House,CH,27/03/2023,Contract Staff,Product Design,ALEXANDER MANN SOLUTIONS,"4,410.42 "
Companies House,CH,22/03/2023,Contract Staff,Product Design,ALEXANDER MANN SOLUTIONS,"4,486.02 "
Companies House,CH,10/03/2023,Contract Staff,Product Design,ALEXANDER MANN SOLUTIONS,"4,486.02 "
Companies House,CH,27/03/2023,Contract Staff,Product Design,ALEXANDER MANN SOLUTIONS,"4,486.02 "
Companies House,CH,06/03/2023,Contract Staff,Product Design,ALEXANDER MANN SOLUTIONS,"4,486.02 "
Companies House,CH,31/03/2023,Contract Staff,Product Design,ALEXANDER MANN SOLUTIONS,"4,504.92 "
Companies House,CH,06/03/2023,Contract Staff,Product Design,ALEXANDER MANN SOLUTIONS,"4,504.92 "
Companies House,CH,13/03/2023,Contract Staff,Product Design,ALEXANDER MANN SOLUTIONS,"4,504.92 "
Companies House,CH,27/03/2023,Contract Staff,Product Design,ALEXANDER MANN SOLUTIONS,"4,504.92 "
Companies House,CH,22/03/2023,Contract Staff,Product Design,ALEXANDER MANN SOLUTIONS,"4,504.92 "
Companies House,CH,10/03/2023,Contract Staff,Product Design,ALEXANDER MANN SOLUTIONS,"4,927.44 "
Companies House,CH,08/03/2023,Contract Staff,Product Design,ALEXANDER MANN SOLUTIONS,"4,927.44 "
Companies House,CH,02/03/2023,Contract Staff,Product Design,ALEXANDER MANN SOLUTIONS,"4,927.44 "
Companies House,CH,31/03/2023,Contract Staff,Product Design,ALEXANDER MANN SOLUTIONS,"4,927.44 "
Companies House,CH,27/03/2023,Contract Staff,Product Design,ALEXANDER MANN SOLUTIONS,"4,927.44 "
Companies House,CH,22/03/2023,Contract Staff,Product Design,ALEXANDER MANN SOLUTIONS,"4,927.44 "
Companies House,CH,10/03/2023,Contract Staff,Product Design,ALEXANDER MANN SOLUTIONS,"5,040.48 "
Companies House,CH,22/03/2023,Contract Staff,Product Design,ALEXANDER MANN SOLUTIONS,"5,040.48 "
Companies House,CH,31/03/2023,Contract Staff,Product Design,ALEXANDER MANN SOLUTIONS,"5,040.48 "
Companies House,CH,06/03/2023,Contract Staff,Product Design,ALEXANDER MANN SOLUTIONS,"5,040.48 "
Companies House,CH,27/03/2023,Contract Staff,Product Design,ALEXANDER MANN SOLUTIONS,"5,040.48 "
Companies House,CH,27/03/2023,Contract Staff,Product Design,ALEXANDER MANN SOLUTIONS,"5,985.54 "
Companies House,CH,06/03/2023,Contract Staff,Product Design,ALEXANDER MANN SOLUTIONS,"5,985.54 "
Companies House,CH,31/03/2023,Contract Staff,Product Design,ALEXANDER MANN SOLUTIONS,"5,985.54 "
Companies House,CH,22/03/2023,Contract Staff,Product Design,ALEXANDER MANN SOLUTIONS,"5,985.54 "
Companies House,CH,10/03/2023,Contract Staff,Product Design,ALEXANDER MANN SOLUTIONS,"5,985.54 "
Companies House,CH,31/03/2023,Contract Staff,Product Design,ALEXANDER MANN SOLUTIONS,"5,985.54 "
Companies House,CH,06/03/2023,Contract Staff,Product Design,ALEXANDER MANN SOLUTIONS,"5,985.54 "
Companies House,CH,31/03/2023,Contract Staff,Product Design,ALEXANDER MANN SOLUTIONS,"8,190.72 "
Companies House,CH,06/03/2023,Contract Staff,Product Design,ALEXANDER MANN SOLUTIONS,"8,820.84 "
Companies House,CH,22/03/2023,Contract Staff,Product Design,ALEXANDER MANN SOLUTIONS,"11,971.08 "
Companies House,CH,10/03/2023,Contract Staff,Product Design,ALEXANDER MANN SOLUTIONS,"12,286.08 "
Companies House,CH,22/03/2023,Contract Staff,Projects,Hays Specialist Recruitment Ltd,"1,573.74 "
Companies House,CH,02/03/2023,Contract Staff,Projects,Hays Specialist Recruitment Ltd,"1,888.49 "
Companies House,CH,10/03/2023,Contract Staff,Projects,ALEXANDER MANN SOLUTIONS,"1,940.20 "
Companies House,CH,02/03/2023,Contract Staff,Projects,Hays Specialist Recruitment Ltd,"2,203.24 "
Companies House,CH,10/03/2023,Contract Staff,Projects,Hays Specialist Recruitment Ltd,"2,203.24 "
Companies House,CH,10/03/2023,Contract Staff,Projects,Hays Specialist Recruitment Ltd,"2,517.98 "
Companies House,CH,31/03/2023,Contract Staff,Projects,Hays Specialist Recruitment Ltd,"2,517.98 "
Companies House,CH,10/03/2023,Contract Staff,Projects,ALEXANDER MANN SOLUTIONS,"2,587.57 "
Companies House,CH,06/03/2023,Contract Staff,Projects,ALEXANDER MANN SOLUTIONS,"2,771.70 "
Companies House,CH,22/03/2023,Contract Staff,Projects,ALEXANDER MANN SOLUTIONS,"2,771.70 "
Companies House,CH,31/03/2023,Contract Staff,Projects,ALEXANDER MANN SOLUTIONS,"2,772.24 "
Companies House,CH,27/03/2023,Contract Staff,Projects,ALEXANDER MANN SOLUTIONS,"2,772.24 "
Companies House,CH,10/03/2023,Contract Staff,Projects,ALEXANDER MANN SOLUTIONS,"2,772.24 "
Companies House,CH,22/03/2023,Contract Staff,Projects,ALEXANDER MANN SOLUTIONS,"2,772.24 "
Companies House,CH,31/03/2023,Contract Staff,Projects,ALEXANDER MANN SOLUTIONS,"2,772.24 "
Companies House,CH,06/03/2023,Contract Staff,Projects,ALEXANDER MANN SOLUTIONS,"2,772.24 "
Companies House,CH,27/03/2023,Contract Staff,Projects,ALEXANDER MANN SOLUTIONS,"2,772.24 "
Companies House,CH,22/03/2023,Contract Staff,Projects,Hays Specialist Recruitment Ltd,"2,832.73 "
Companies House,CH,17/03/2023,Contract Staff,Projects,ALEXANDER MANN SOLUTIONS,"3,465.30 "
Companies House,CH,10/03/2023,Contract Staff,Projects,ALEXANDER MANN SOLUTIONS,"3,465.30 "
Companies House,CH,13/03/2023,Contract Staff,Projects,ALEXANDER MANN SOLUTIONS,"4,049.16 "
Companies House,CH,06/03/2023,Contract Staff,Projects,ALEXANDER MANN SOLUTIONS,"4,049.16 "
Companies House,CH,31/03/2023,Contract Staff,Projects,ALEXANDER MANN SOLUTIONS,"4,049.16 "
Companies House,CH,27/03/2023,Contract Staff,Projects,ALEXANDER MANN SOLUTIONS,"4,049.16 "
Companies House,CH,22/03/2023,Contract Staff,Projects,ALEXANDER MANN SOLUTIONS,"4,049.16 "
Companies House,CH,22/03/2023,Contract Staff,Projects,ALEXANDER MANN SOLUTIONS,"4,065.12 "
Companies House,CH,31/03/2023,Contract Staff,Projects,ALEXANDER MANN SOLUTIONS,"4,252.88 "
Companies House,CH,27/03/2023,Contract Staff,Projects,ALEXANDER MANN SOLUTIONS,"4,312.62 "
Companies House,CH,06/03/2023,Contract Staff,Projects,ALEXANDER MANN SOLUTIONS,"4,312.62 "
Companies House,CH,22/03/2023,Contract Staff,Projects,ALEXANDER MANN SOLUTIONS,"4,312.62 "
Companies House,CH,31/03/2023,Contract Staff,Projects,ALEXANDER MANN SOLUTIONS,"4,312.62 "
Companies House,CH,31/03/2023,Contract Staff,Projects,ALEXANDER MANN SOLUTIONS,"4,573.26 "
Companies House,CH,27/03/2023,Contract Staff,Projects,ALEXANDER MANN SOLUTIONS,"4,725.42 "
Companies House,CH,10/03/2023,Contract Staff,Projects,ALEXANDER MANN SOLUTIONS,"4,725.42 "
Companies House,CH,22/03/2023,Contract Staff,Projects,ALEXANDER MANN SOLUTIONS,"4,725.42 "
Companies House,CH,06/03/2023,Contract Staff,Projects,ALEXANDER MANN SOLUTIONS,"6,930.60 "
Companies House,CH,06/03/2023,Contract Staff,Projects,ALEXANDER MANN SOLUTIONS,"9,450.84 "
Companies House,CH,10/03/2023,Contract Staff,Strategic Finance,ALEXANDER MANN SOLUTIONS,"2,079.18 "
Companies House,CH,06/03/2023,Contract Staff,Strategic Finance,ALEXANDER MANN SOLUTIONS,"13,861.20 "
Companies House,CH,27/03/2023,Contract Staff,"Strategy, Policy & Communications",ALEXANDER MANN SOLUTIONS,"1,323.13 "
Companies House,CH,22/03/2023,Contract Staff,"Strategy, Policy & Communications",ALEXANDER MANN SOLUTIONS,"1,323.13 "
Companies House,CH,31/03/2023,Contract Staff,"Strategy, Policy & Communications",ALEXANDER MANN SOLUTIONS,"1,323.13 "
Companies House,CH,06/03/2023,Contract Staff,"Strategy, Policy & Communications",ALEXANDER MANN SOLUTIONS,"1,512.14 "
Companies House,CH,10/03/2023,Contract Staff,"Strategy, Policy & Communications",ALEXANDER MANN SOLUTIONS,"1,512.14 "
Companies House,CH,06/03/2023,Contract Staff,"Strategy, Policy & Communications",ALEXANDER MANN SOLUTIONS,"1,946.88 "
Companies House,CH,22/03/2023,Contract Staff,"Strategy, Policy & Communications",ALEXANDER MANN SOLUTIONS,"2,205.18 "
Companies House,CH,22/03/2023,Contract Staff,"Strategy, Policy & Communications",Spring Technology Staffing Services Ltd,"2,220.12 "
Companies House,CH,29/03/2023,Contract Staff,"Strategy, Policy & Communications",Spring Technology Staffing Services Ltd,"3,092.32 "
Companies House,CH,10/03/2023,Contract Staff,"Strategy, Policy & Communications",Spring Technology Staffing Services Ltd,"3,805.92 "
Companies House,CH,10/03/2023,Contract Staff,"Strategy, Policy & Communications",Spring Technology Staffing Services Ltd,"3,805.92 "
Companies House,CH,31/03/2023,Contract Staff,"Strategy, Policy & Communications",ALEXANDER MANN SOLUTIONS,"3,893.76 "
Companies House,CH,15/03/2023,Contract Staff,"Strategy, Policy & Communications",Spring Technology Staffing Services Ltd,"3,964.50 "
Companies House,CH,27/03/2023,Contract Staff,"Strategy, Policy & Communications",ALEXANDER MANN SOLUTIONS,"4,410.36 "
Companies House,CH,06/03/2023,Contract Staff,"Strategy, Policy & Communications",ALEXANDER MANN SOLUTIONS,"4,410.36 "
Companies House,CH,22/03/2023,Contract Staff,"Strategy, Policy & Communications",ALEXANDER MANN SOLUTIONS,"7,787.52 "
Companies House,CH,31/03/2023,Contract Staff,WebOps & DevOps,ALEXANDER MANN SOLUTIONS,"3,907.86 "
Companies House,CH,06/03/2023,Contract Staff,WebOps & DevOps,ALEXANDER MANN SOLUTIONS,"3,907.86 "
Companies House,CH,27/03/2023,Contract Staff,WebOps & DevOps,ALEXANDER MANN SOLUTIONS,"3,907.86 "
Companies House,CH,10/03/2023,Contract Staff,WebOps & DevOps,ALEXANDER MANN SOLUTIONS,"4,103.26 "
Companies House,CH,29/03/2023,Contract Staff,WebOps & DevOps,Spring Technology Staffing Services Ltd,"4,264.50 "
Companies House,CH,10/03/2023,Contract Staff,WebOps & DevOps,Spring Technology Staffing Services Ltd,"4,264.50 "
Companies House,CH,10/03/2023,Contract Staff,WebOps & DevOps,Spring Technology Staffing Services Ltd,"4,264.50 "
Companies House,CH,10/03/2023,Contract Staff,WebOps & DevOps,Spring Technology Staffing Services Ltd,"4,264.50 "
Companies House,CH,22/03/2023,Contract Staff,WebOps & DevOps,Spring Technology Staffing Services Ltd,"4,264.50 "
Companies House,CH,22/03/2023,Contract Staff,WebOps & DevOps,ALEXANDER MANN SOLUTIONS,"4,689.43 "
Companies House,CH,31/03/2023,Credit Card Charges,Accounting,WORLDPAY LIMITED,"2,446.23 "
Companies House,CH,31/03/2023,Credit Card Charges,Accounting,WORLDPAY LIMITED,"13,529.30 "
Companies House,CH,31/03/2023,Credit Card Charges,Accounting,WORLDPAY LIMITED,"29,903.65 "
Companies House,CH,31/03/2023,Credit Card Charges,Accounting,WORLDPAY LIMITED,"31,074.32 "
Companies House,CH,29/03/2023,Credit Card Charges,Accounting,WORLDPAY LIMITED,"32,512.31 "
Companies House,CH,29/03/2023,Credit Card Charges,Accounting,WORLDPAY LIMITED,"47,387.40 "
Companies House,CH,31/03/2023,Credit Card Charges,Late Filing Penalties Accounting,WORLDPAY LIMITED,615.68 
Companies House,CH,29/03/2023,Credit Card Charges,Late Filing Penalties Accounting,WORLDPAY LIMITED,"8,351.39 "
Companies House,CH,29/03/2023,Credit Card Charges,Late Filing Penalties Accounting,WORLDPAY LIMITED,"10,462.75 "
Companies House,CH,29/03/2023,Credit Card Charges,Late Filing Penalties Accounting,WORLDPAY LIMITED,"10,540.83 "
Companies House,CH,31/03/2023,Credit Card Charges,Late Filing Penalties Accounting,WORLDPAY LIMITED,"11,665.73 "
Companies House,CH,29/03/2023,Credit Card Charges,Late Filing Penalties Accounting,WORLDPAY LIMITED,"13,445.46 "
Companies House,CH,06/03/2023,Diversity & Inclusion,HR Service delivery,BEAM DEVELOPMENT & TRAINING LTD,500 
Companies House,CH,13/03/2023,Edinburgh Maintenance,Regional Estates - Edinburgh,GOVERNMENT PROPERTY AGENCY (Montagu Evans),"1,341.18 "
Companies House,CH,15/03/2023,Electricity,Building Services,EDF ENERGY CUSTOMERS PLC,"53,304.55 "
Companies House,CH,15/03/2023,Electricity,Regional Estates - Belfast,"Electric Ireland, ESB Independent Energy","1,812.11 "
Companies House,CH,08/03/2023,Electricity,Regional Estates - Edinburgh,EDF ENERGY CUSTOMERS PLC,"(1,004.79)"
Companies House,CH,08/03/2023,Electricity,Regional Estates - Edinburgh,EDF ENERGY CUSTOMERS PLC,"(1,001.54)"
Companies House,CH,08/03/2023,Electricity,Regional Estates - Edinburgh,EDF ENERGY CUSTOMERS PLC,(997.81)
Companies House,CH,08/03/2023,Electricity,Regional Estates - Edinburgh,EDF ENERGY CUSTOMERS PLC,(982.53)
Companies House,CH,08/03/2023,Electricity,Regional Estates - Edinburgh,EDF ENERGY CUSTOMERS PLC,(971.49)
Companies House,CH,08/03/2023,Electricity,Regional Estates - Edinburgh,EDF ENERGY CUSTOMERS PLC,(960.45)
Companies House,CH,08/03/2023,Electricity,Regional Estates - Edinburgh,EDF ENERGY CUSTOMERS PLC,(943.37)
Companies House,CH,08/03/2023,Electricity,Regional Estates - Edinburgh,EDF ENERGY CUSTOMERS PLC,(919.34)
Companies House,CH,08/03/2023,Electricity,Regional Estates - Edinburgh,EDF ENERGY CUSTOMERS PLC,(720.90)
Companies House,CH,08/03/2023,Electricity,Regional Estates - Edinburgh,EDF ENERGY CUSTOMERS PLC,747.84 
Companies House,CH,08/03/2023,Electricity,Regional Estates - Edinburgh,EDF ENERGY CUSTOMERS PLC,788.16 
Companies House,CH,08/03/2023,Electricity,Regional Estates - Edinburgh,EDF ENERGY CUSTOMERS PLC,810.63 
Companies House,CH,08/03/2023,Electricity,Regional Estates - Edinburgh,EDF ENERGY CUSTOMERS PLC,837.74 
Companies House,CH,08/03/2023,Electricity,Regional Estates - Edinburgh,EDF ENERGY CUSTOMERS PLC,868.02 
Companies House,CH,08/03/2023,Electricity,Regional Estates - Edinburgh,EDF ENERGY CUSTOMERS PLC,896.04 
Companies House,CH,08/03/2023,Electricity,Regional Estates - Edinburgh,EDF ENERGY CUSTOMERS PLC,975.72 
Companies House,CH,08/03/2023,Electricity,Regional Estates - Edinburgh,EDF ENERGY CUSTOMERS PLC,"1,001.73 "
Companies House,CH,08/03/2023,Electricity,Regional Estates - Edinburgh,EDF ENERGY CUSTOMERS PLC,"1,002.55 "
Companies House,CH,08/03/2023,Electricity,Regional Estates - Edinburgh,EDF ENERGY CUSTOMERS PLC,"1,011.63 "
Companies House,CH,08/03/2023,Electricity,Regional Estates - Edinburgh,EDF ENERGY CUSTOMERS PLC,"1,029.53 "
Companies House,CH,08/03/2023,Electricity,Regional Estates - Edinburgh,EDF ENERGY CUSTOMERS PLC,"1,031.71 "
Companies House,CH,08/03/2023,Electricity,Regional Estates - Edinburgh,EDF ENERGY CUSTOMERS PLC,"1,033.49 "
Companies House,CH,08/03/2023,Electricity,Regional Estates - Edinburgh,EDF ENERGY CUSTOMERS PLC,"1,047.21 "
Companies House,CH,08/03/2023,Electricity,Regional Estates - Edinburgh,EDF ENERGY CUSTOMERS PLC,"1,056.25 "
Companies House,CH,08/03/2023,Electricity,Regional Estates - Edinburgh,EDF ENERGY CUSTOMERS PLC,"1,089.26 "
Companies House,CH,17/03/2023,Environmental costs,Building Services,SANTIA ASBESTOS MANAGEMENT LTD,765 
Companies House,CH,31/03/2023,Environmental costs,Building Services,British Standards Institute,"2,044 "
Companies House,CH,08/03/2023,EST Additions This Year,Building Services,Advanced Fire Technologies Ltd,"20,233.34 "
Companies House,CH,06/03/2023,EST Additions This Year,Estates Projects,Cabinet Office,"1,750 "
Companies House,CH,06/03/2023,EST Additions This Year,Estates Projects,Cabinet Office,"5,250 "
Companies House,CH,06/03/2023,EST Additions This Year,Estates Projects,D&G OFFICE INTERIORS LTD,"188,857 "
Companies House,CH,10/03/2023,External Managed Services,Portfolio,KAINOS SOFTWARE LTD,"224,290.17 "
Companies House,CH,10/03/2023,External Managed Services,Portfolio,KAINOS SOFTWARE LTD,"449,747.67 "
Companies House,CH,20/03/2023,Extl Scrum Resource Costs,Architecture & Design,FDM GROUP,"66,000 "
Companies House,CH,20/03/2023,Extl Scrum Resource Costs,Architecture & Design,FDM GROUP,"66,900 "
Companies House,CH,20/03/2023,Extl Scrum Resource Costs,Architecture & Design,FDM GROUP,"75,160 "
Companies House,CH,15/03/2023,Gas,Building Services,TotalEnergies Gas & Power,"2,620.99 "
Companies House,CH,15/03/2023,Government Legal,Filing,GOVERNMENT LEGAL DEPARTMENT,"78,650.40 "
Companies House,CH,17/03/2023,Government Legal,Training,GOVERNMENT LEGAL DEPARTMENT,600.24 
Companies House,CH,17/03/2023,Government Legal,Training,GOVERNMENT LEGAL DEPARTMENT,"1,013.04 "
Companies House,CH,17/03/2023,Government Legal,Training,GOVERNMENT LEGAL DEPARTMENT,"2,168.88 "
Companies House,CH,02/03/2023,Hardware & Software Maintenance,Architecture & Design,BYTES SOFTWARE SERVICES LIMITED,"27,176.50 "
Companies House,CH,22/03/2023,Hardware & Software Maintenance,HR Strategy & Policy,MHR,"4,108.58 "
Companies House,CH,02/03/2023,Hardware & Software Maintenance,Infrastructure,QUEST SOFTWARE INTERNATIONAL LIMITED,"16,437.60 "
Companies House,CH,08/03/2023,Hardware & Software Maintenance,Infrastructure,Konica Minolta Business Solutions (wales,"18,608.93 "
Companies House,CH,02/03/2023,Hardware & Software Maintenance,Infrastructure Engineering,Oracle,"136,364.44 "
Companies House,CH,02/03/2023,Hardware & Software Maintenance,Infrastructure Engineering,Oracle,"198,285.64 "
Companies House,CH,10/03/2023,Hardware & Software Maintenance,WebOps & DevOps,Kodak Alaris Ltd,"20,172.82 "
Companies House,CH,22/03/2023,Hardware & Software Maintenance,WebOps & DevOps,ABBYY,"24,148.80 "
Companies House,CH,29/03/2023,Hardware & Software Maintenance,WebOps & DevOps,Precisely Software Limited,"53,591.17 "
Companies House,CH,22/03/2023,Hardware & Software Maintenance,WebOps & DevOps,MICROPORTS.NET LTD T/A FOLDING SPACE,"139,800 "
Companies House,CH,17/03/2023,Independent adjudication,Late Filing Penalties,Independent adjudication,"1,527 "
Companies House,CH,06/03/2023,Independent adjudication,Late Filing Penalties,Independent adjudication,"1,721.45 "
Companies House,CH,16/03/2023,Legal Disbursements,Late Filing Penalties Accounting,INDESSER,"62,153.40 "
Companies House,CH,16/03/2023,Legal Disbursements,Late Filing Penalties Accounting,INDESSER,"390,985 "
Companies House,CH,16/03/2023,Legal Disbursements,Late Filing Penalties Edinburgh,INDESSER,"3,674.94 "
Companies House,CH,16/03/2023,Legal Disbursements,Late Filing Penalties Edinburgh,INDESSER,"89,354.39 "
Companies House,CH,16/03/2023,Legal Disbursements,Late Filing Penalties Northern Ireland,INDESSER,"1,174.64 "
Companies House,CH,16/03/2023,Legal Disbursements,Late Filing Penalties Northern Ireland,INDESSER,"30,420.32 "
Companies House,CH,22/03/2023,Legal Expenses General,Directorate,Crown Solicitors Office,"1,113 "
Companies House,CH,17/03/2023,Micrographics,Get Company Information,Restore Digital Limited,"(23,301.50)"
Companies House,CH,17/03/2023,Micrographics,Get Company Information,Restore Digital Limited,"7,844.10 "
Companies House,CH,17/03/2023,Micrographics,Get Company Information,Restore Digital Limited,"16,649.30 "
Companies House,CH,20/03/2023,Miscellaneous licences,Scotland,Equifax PLC,856.67 
Companies House,CH,13/03/2023,Occupational Health Contract,HR Strategy & Policy,Health Partners Duradiamond Ltd,"9,782.48 "
Companies House,CH,22/03/2023,Office Machinery Maintenance,Filing,QUADIENT UK LIMITED,"1,414.25 "
Companies House,CH,27/03/2023,Office Machinery Maintenance,Procurement,QUADIENT UK LIMITED,559.37 
Companies House,CH,08/03/2023,Outside Market Research,"Data, Analytics & Research",IFF RESEARCH LTD,"24,887.86 "
Companies House,CH,13/03/2023,Postage,Filing,APOLLO DISTRIBUTION SOLUTIONS LTD,"2,392.50 "
Companies House,CH,15/03/2023,Postage,Filing,Royal Mail,"5,744.29 "
Companies House,CH,31/03/2023,Postage,Filing,Royal Mail,"5,748.27 "
Companies House,CH,06/03/2023,Postage,Filing,Royal Mail,"6,118.54 "
Companies House,CH,27/03/2023,Postage,Filing,Royal Mail,"7,058.18 "
Companies House,CH,31/03/2023,Postage,Filing,Royal Mail,"8,309.82 "
Companies House,CH,10/03/2023,Postage,Northern Ireland,QUADIENT UK LIMITED,503.48 
Companies House,CH,06/03/2023,Print and Mailing Contract,Filing,APS GROUP,"2,262.25 "
Companies House,CH,17/03/2023,Print and Mailing Contract,Filing,APS GROUP,"35,600.77 "
Companies House,CH,06/03/2023,Print and Mailing Contract,Filing,APS GROUP,"54,441.38 "
Companies House,CH,31/03/2023,Print and Mailing Contract,Filing,APS GROUP,"59,679.85 "
Companies House,CH,27/03/2023,Print and Mailing Contract,Filing,APS GROUP,"59,886.69 "
Companies House,CH,06/03/2023,Print and Mailing Contract,Filing,APS GROUP,"66,147.44 "
Companies House,CH,17/03/2023,Print and Mailing Contract,Filing,APS GROUP,"84,431 "
Companies House,CH,27/03/2023,Print and Mailing Contract,Filing,APS GROUP,"115,880.05 "
Companies House,CH,17/03/2023,Print and Mailing Contract,Filing,APS GROUP,"126,224.31 "
Companies House,CH,06/03/2023,Print and Mailing Contract,Late Filing Penalties Accounting,A McLay & Company Ltd,"1,731.05 "
Companies House,CH,17/03/2023,Print and Mailing Contract,Late Filing Penalties Accounting,A McLay & Company Ltd,"7,217.60 "
Companies House,CH,06/03/2023,Print and Mailing Contract,Late Filing Penalties Accounting,A McLay & Company Ltd,"8,675.35 "
Companies House,CH,27/03/2023,Print and Mailing Contract,Late Filing Penalties Accounting,APS GROUP,"10,767.73 "
Companies House,CH,13/03/2023,Professional Fees,Cyber Security,ALCUMUS ISOQAR LTD,"5,684 "
Companies House,CH,20/03/2023,Professional Fees,Filing Service,NCC Group Security Services Ltd,"2,800 "
Companies House,CH,17/03/2023,Professional Fees,Infrastructure Engineering,Restore Digital Limited,"4,250 "
Companies House,CH,27/03/2023,Professional Fees,Portfolio,THE REGISTERS OF SCOTLAND,600 
Companies House,CH,31/03/2023,Professional Fees,WebOps & DevOps,CoreFiling,"23,600 "
Companies House,CH,17/03/2023,RATES,Building Services,City and County of Cardiff,"63,308.33 "
Companies House,CH,17/03/2023,RATES,London Office,CITY OF WESTMINSTER,"1,933.62 "
Companies House,CH,17/03/2023,RATES,London Office,CITY OF WESTMINSTER,"2,944 "
Companies House,CH,10/03/2023,RATES,Regional Estates - Edinburgh,The City of Edinburgh Council,"5,993.25 "
Companies House,CH,10/03/2023,Recruitment Expenses,HR Service delivery,Haymarket Media Group Ltd,"1,875 "
Companies House,CH,31/03/2023,Recruitment Expenses,HR Service delivery,Hays Specialist Recruitment Ltd,"2,250 "
Companies House,CH,31/03/2023,Recruitment Expenses,HR Service delivery,Hays Specialist Recruitment Ltd,"2,250 "
Companies House,CH,31/03/2023,Recruitment Expenses,HR Service delivery,Hays Specialist Recruitment Ltd,"2,250 "
Companies House,CH,31/03/2023,Recruitment Expenses,HR Service delivery,Hays Specialist Recruitment Ltd,"2,250 "
Companies House,CH,31/03/2023,Recruitment Expenses,HR Service delivery,Hays Specialist Recruitment Ltd,"2,250 "
Companies House,CH,31/03/2023,Recruitment Expenses,HR Service delivery,Hoop Recruitment,"3,850 "
Companies House,CH,02/03/2023,Recruitment Expenses,HR Service delivery,Free-Work Group Limited,"5,000 "
Companies House,CH,17/03/2023,Recruitment Expenses,HR Service delivery,Cabinet Office,"8,312.50 "
Companies House,CH,16/03/2023,Recruitment Expenses,HR Service delivery,IRG Advisors LLP T/A Odgers Berndtson,"8,333 "
Companies House,CH,16/03/2023,Recruitment Expenses,HR Service delivery,IRG Advisors LLP T/A Odgers Berndtson,"8,333 "
Companies House,CH,16/03/2023,Recruitment Expenses,HR Service delivery,IRG Advisors LLP T/A Odgers Berndtson,"16,667 "
Companies House,CH,10/03/2023,Restaurant Services,Building Services,ARAMARK,"3,510.05 "
Companies House,CH,08/03/2023,Rolling Maintenance & minor contracts,Building Services,ROB MORRIS PLANT HIRE LTD,739.20 
Companies House,CH,22/03/2023,Rolling Maintenance & minor contracts,Building Services,CADSPEC LTD,"1,386.97 "
Companies House,CH,15/03/2023,Rolling Maintenance & minor contracts,Estates Projects,SANTIA ASBESTOS MANAGEMENT LTD,"3,900 "
Companies House,CH,22/03/2023,Security,Accounting,Loomis Uk Ltd,666.52 
Companies House,CH,31/03/2023,Service charges,Regional Estates - London,Jon Christopher Chartered Surveyors,712.72 
Companies House,CH,31/03/2023,Service charges,Regional Estates - London,Jon Christopher Chartered Surveyors,"41,727.35 "
Companies House,CH,02/03/2023,Software as a service,Cyber Security,E2E ASSURE,"3,120 "
Companies House,CH,02/03/2023,Software as a service,Cyber Security,E2E ASSURE,"12,965.90 "
Companies House,CH,02/03/2023,Software as a service,Cyber Security,E2E ASSURE,"19,935 "
Companies House,CH,13/03/2023,Software as a service,Cyber Security,E2E ASSURE,"34,320 "
Companies House,CH,20/03/2023,Software as a service,Procurement,Gartner UK Ltd,"27,240 "
Companies House,CH,27/03/2023,Software Licence,HR Strategy & Policy,Edenred Rewards,"2,121.10 "
Companies House,CH,27/03/2023,Software Licence,HR Strategy & Policy,Edenred Rewards,"4,704.20 "
Companies House,CH,22/03/2023,Software Licence,HR Strategy & Policy,WEALTH WIZARDS BENEFITS LTD,"5,000 "
Companies House,CH,22/03/2023,Software Licence,HR Strategy & Policy,MHR,"15,010 "
Companies House,CH,02/03/2023,Software Licence,Infrastructure,QUEST SOFTWARE INTERNATIONAL LIMITED,"2,046.37 "
Companies House,CH,10/03/2023,Stationery,Procurement,Banner,"4,113.70 "
Companies House,CH,22/03/2023,Subscriptions,Directorate,Association of Chief Executives,"1,500 "
Companies House,CH,21/03/2023,Subscriptions,Directorate,European Business Register EEIG,"3,504.70 "
Companies House,CH,22/03/2023,Telecom Rental,Infrastructure,AVOIRA LTD,"3,277.33 "
Companies House,CH,16/03/2023,Telephone Costs,Infrastructure,TELEFONICA UK LTD,"1,993.28 "
Companies House,CH,13/03/2023,TFM Management fees,Regional Estates - Edinburgh,GOVERNMENT PROPERTY AGENCY (Montagu Evans),"1,083 "
Companies House,CH,06/03/2023,Training Central,Training,ERNST & YOUNG LLP,950 
Companies House,CH,02/03/2023,Training Central,Training,ERNST & YOUNG LLP,"22,415 "
Companies House,CH,31/03/2023,Training Central,Training,ERNST & YOUNG LLP,"30,915 "
Companies House,CH,27/03/2023,Training Directorate,Training,BITESIZE COMPUTER TRAINING LTD,500 
Companies House,CH,22/03/2023,Training Directorate,Training,BITESIZE COMPUTER TRAINING LTD,500 
Companies House,CH,29/03/2023,Training Directorate,Training,CSL-KPMG LLP,504 
Companies House,CH,02/03/2023,Training Directorate,Training,CSL-KPMG LLP,520.75 
Companies House,CH,15/03/2023,Training Directorate,Training,RELX (UK) Limited T/A Lexis Nexis,"1,018.96 "
Companies House,CH,17/03/2023,Training Directorate,Training,CSL-KPMG LLP,"1,450.97 "
Companies House,CH,10/03/2023,Training Directorate,Training,RELX (UK) Limited T/A Lexis Nexis,"1,487.52 "
Companies House,CH,02/03/2023,Training Directorate,Training,CSL-KPMG LLP,"1,506 "
Companies House,CH,22/03/2023,Training Directorate,Training,CSL-KPMG LLP,"1,653 "
Companies House,CH,29/03/2023,Training Directorate,Training,MIND GYM LIMITED,"1,692 "
Companies House,CH,22/03/2023,Training Directorate,Training,MIND GYM LIMITED,"1,692 "
Companies House,CH,27/03/2023,Training Directorate,Training,CSL-KPMG LLP,"1,792 "
Companies House,CH,27/03/2023,Training Directorate,Training,CSL-KPMG LLP,"1,940 "
Companies House,CH,27/03/2023,Training Directorate,Training,CSL-KPMG LLP,"1,940 "
Companies House,CH,31/03/2023,Training Directorate,Training,GOVNET COMMUNICATIONS,"1,975 "
Companies House,CH,22/03/2023,Training Directorate,Training,CSL-KPMG LLP,"2,195 "
Companies House,CH,22/03/2023,Training Directorate,Training,CSL-KPMG LLP,"2,195 "
Companies House,CH,17/03/2023,Training Directorate,Training,CSL-KPMG LLP,"2,601.95 "
Companies House,CH,17/03/2023,Training Directorate,Training,CSL-KPMG LLP,"2,601.95 "
Companies House,CH,02/03/2023,Training Directorate,Training,CSL-KPMG LLP,"2,603 "
Companies House,CH,27/03/2023,Training Directorate,Training,CSL-KPMG LLP,"2,603 "
Companies House,CH,27/03/2023,Training Directorate,Training,CSL-KPMG LLP,"2,603 "
Companies House,CH,29/03/2023,Training Directorate,Training,MIND GYM LIMITED,"3,384 "
Companies House,CH,17/03/2023,Training Directorate,Training,GOVERNMENT LEGAL DEPARTMENT,"3,854.40 "
Companies House,CH,13/03/2023,Training Directorate,Training,Bulien LLP,"4,100 "
Companies House,CH,06/03/2023,Training Directorate,Training,Cabinet Office,"7,700 "
Companies House,CH,31/03/2023,Training Directorate,Training,Framework Training Limited,"11,000 "
Companies House,CH,15/03/2023,Training Directorate,Training,CSL-KPMG LLP,"14,855 "
Companies House,CH,15/03/2023,Training Directorate,Training,CSL-KPMG LLP,"14,855 "
Companies House,CH,10/03/2023,Training External,Northern Ireland,Inquisitio Consulting Ltd,"1,600 "
Companies House,CH,06/03/2023,Travel,Organisational Overheads,CLARITY TRAVEL LIMITED,"2,084.66 "
Companies House,CH,24/03/2023,Utilisation of provision in ye,Organisational Overheads,GOVERNMENT LEGAL DEPARTMENT,"26,500 "
Companies House,CH,08/03/2023,Water,Building Services,Dwr Cymru Welsh Water,"1,827.91 "
Companies House,CH,08/03/2023,Wood Pellets,Building Services,AMP BIOMASS FUELS LTD,"8,581.72 "
Companies House,CH,31/03/2023,Wood Pellets,Building Services,AMP BIOMASS FUELS LTD,"10,772.54 "
Companies House,CH,31/03/2023,Wood Pellets,Building Services,AMP BIOMASS FUELS LTD,"10,893.58 "